[Event "Late-Titled-Tuesday-Blitz-January-16-2024"]
[Site "Chess.com"]
[Date "2024.01.16"]
[Round "10"]
[White "GMJustin"]
[Black "SergioMoralesG"]
[Result "0-1"]
[WhiteElo "2349"]
[BlackElo "2470"]
[TimeControl "180+1"]
[EndTime "15:56:47 PST"]
[Termination "SergioMoralesG won on time"]

1. d4 {[%clk 0:02:36.3]} 1... d5 {[%clk 0:02:49.4]} 2. c4 {[%clk 0:02:35.4]}
2... c6 {[%clk 0:02:49.9]} 3. Nf3 {[%clk 0:02:34]} 3... Nf6 {[%clk 0:02:50.1]}
4. e3 {[%clk 0:02:34]} 4... Bf5 {[%clk 0:02:47.6]} 5. Be2 {[%clk 0:02:06.6]}
5... e6 {[%clk 0:02:44.7]} 6. O-O {[%clk 0:02:06.2]} 6... h6 {[%clk 0:02:41.1]}
7. Nbd2 {[%clk 0:02:02.1]} 7... Nbd7 {[%clk 0:02:41.1]} 8. b3 {[%clk 0:01:56.5]}
8... a5 {[%clk 0:02:41.2]} 9. Bb2 {[%clk 0:01:54.2]} 9... a4 {[%clk 0:02:39.3]}
10. c5 {[%clk 0:01:30.7]} 10... a3 {[%clk 0:02:28.9]} 11. Bc3 {[%clk 0:01:29.8]}
11... Be7 {[%clk 0:02:29]} 12. b4 {[%clk 0:01:28.9]} 12... O-O {[%clk
0:02:27.4]} 13. b5 {[%clk 0:01:21.6]} 13... Ne4 {[%clk 0:02:22.1]} 14. Nxe4
{[%clk 0:01:14.9]} 14... Bxe4 {[%clk 0:02:23]} 15. Nd2 {[%clk 0:01:08.4]} 15...
Bg6 {[%clk 0:02:22.5]} 16. Qb3 {[%clk 0:00:40.1]} 16... e5 {[%clk 0:02:20.4]}
17. f4 {[%clk 0:00:32.4]} 17... exd4 {[%clk 0:02:14.3]} 18. exd4 {[%clk
0:00:32.5]} 18... Bf6 {[%clk 0:02:08.3]} 19. f5 {[%clk 0:00:24.3]} 19... Bh7
{[%clk 0:02:08]} 20. b6 {[%clk 0:00:20.6]} 20... Qe7 {[%clk 0:02:03.4]} 21. Rf2
{[%clk 0:00:03.3]} 21... Nxc5 {[%clk 0:01:24]} 22. dxc5 {[%clk 0:00:03]} 22...
d4 {[%clk 0:01:24.5]} 23. Bb4 {[%clk 0:00:02.7]} 23... d3 {[%clk 0:01:19.7]} 24.
Re1 {[%clk 0:00:02.5]} 24... dxe2 {[%clk 0:01:15.2]} 25. Rfxe2 {[%clk
0:00:02.7]} 25... Bd4+ {[%clk 0:01:07.5]} 26. Kh1 {[%clk 0:00:02.6]} 26... Qf6
{[%clk 0:01:04.2]} 27. Nf3 {[%clk 0:00:02.6]} 27... Bxf5 {[%clk 0:00:58.6]} 28.
Nxd4 {[%clk 0:00:02.7]} 28... Qxd4 {[%clk 0:00:58.2]} 29. Qc3 {[%clk 0:00:02.7]}
29... Qxc3 {[%clk 0:00:53.5]} 30. Bxc3 {[%clk 0:00:03.6]} 30... Be6 {[%clk
0:00:50.7]} 31. h3 {[%clk 0:00:03.4]} 31... Ra4 {[%clk 0:00:46.7]} 32. Rd2
{[%clk 0:00:03]} 32... Rc4 {[%clk 0:00:45.3]} 33. Bd4 {[%clk 0:00:03]} 33... Rd8
{[%clk 0:00:42.9]} 34. Red1 {[%clk 0:00:03.2]} 34... Rd5 {[%clk 0:00:32.1]} 35.
Be3 {[%clk 0:00:03]} 35... Rxd2 {[%clk 0:00:27.9]} 36. Rxd2 {[%clk 0:00:03.9]}
36... Rc1+ {[%clk 0:00:24.6]} 37. Kh2 {[%clk 0:00:03.8]} 37... Ra1 {[%clk
0:00:25.2]} 38. Bd4 {[%clk 0:00:01.9]} 38... Rxa2 {[%clk 0:00:21.9]} 39. Rxa2
{[%clk 0:00:02.1]} 39... Bxa2 {[%clk 0:00:22.8]} 40. Bc3 {[%clk 0:00:02.2]}
40... Bd5 {[%clk 0:00:20.5]} 41. Kg3 {[%clk 0:00:02.3]} 41... g5 {[%clk
0:00:19.7]} 42. Kf2 {[%clk 0:00:02.3]} 42... f5 {[%clk 0:00:19.6]} 43. g3 {[%clk
0:00:02.4]} 43... Kf7 {[%clk 0:00:19.7]} 44. Ke3 {[%clk 0:00:02.1]} 44... Ke6
{[%clk 0:00:19.7]} 45. Ba1 {[%clk 0:00:01.6]} 45... Bg2 {[%clk 0:00:19.4]} 0-1

[Event "Late-Titled-Tuesday-Blitz-January-16-2024"]
[Site "Chess.com"]
[Date "2024.01.16"]
[Round "10"]
[White "HajiyevKanan"]
[Black "DeArron_Fox"]
[Result "1-0"]
[WhiteElo "2567"]
[BlackElo "2451"]
[TimeControl "180+1"]
[EndTime "15:56:50 PST"]
[Termination "HajiyevKanan won by resignation"]

1. d4 {[%clk 0:03:00.9]} 1... d5 {[%clk 0:02:59]} 2. c4 {[%clk 0:03:00.6]} 2...
e6 {[%clk 0:02:58.8]} 3. cxd5 {[%clk 0:03:01.5]} 3... exd5 {[%clk 0:02:59.3]} 4.
Nc3 {[%clk 0:03:02.4]} 4... c6 {[%clk 0:02:59.7]} 5. Nf3 {[%clk 0:03:02.8]} 5...
Nf6 {[%clk 0:03:00.1]} 6. Qc2 {[%clk 0:03:03.1]} 6... Be7 {[%clk 0:02:54.7]} 7.
Bf4 {[%clk 0:03:03.1]} 7... g6 {[%clk 0:02:47.5]} 8. e3 {[%clk 0:03:03.4]} 8...
Bf5 {[%clk 0:02:47.2]} 9. Bd3 {[%clk 0:03:04.3]} 9... Bxd3 {[%clk 0:02:47]} 10.
Qxd3 {[%clk 0:03:05.2]} 10... O-O {[%clk 0:02:47.4]} 11. O-O {[%clk 0:03:05.9]}
11... Nbd7 {[%clk 0:02:47.1]} 12. Rab1 {[%clk 0:03:06.6]} 12... Re8 {[%clk
0:02:47.5]} 13. Qc2 {[%clk 0:03:06.8]} 13... a5 {[%clk 0:02:47.1]} 14. h3 {[%clk
0:03:05.6]} 14... Nf8 {[%clk 0:02:40.5]} 15. a3 {[%clk 0:03:02.7]} 15... Bd6
{[%clk 0:02:38.4]} 16. Ne5 {[%clk 0:03:01.1]} 16... Qe7 {[%clk 0:02:26.7]} 17.
Rfc1 {[%clk 0:02:54.8]} 17... N8d7 {[%clk 0:02:17.3]} 18. Nxd7 {[%clk
0:02:53.4]} 18... Nxd7 {[%clk 0:02:05.5]} 19. Bxd6 {[%clk 0:02:53.4]} 19... Qxd6
{[%clk 0:02:06.4]} 20. b4 {[%clk 0:02:52.1]} 20... axb4 {[%clk 0:02:04.3]} 21.
axb4 {[%clk 0:02:53]} 21... b5 {[%clk 0:01:53.9]} 22. Ne2 {[%clk 0:02:52.5]}
22... Ra6 {[%clk 0:01:53.2]} 23. Nf4 {[%clk 0:02:49.8]} 23... Nb6 {[%clk
0:01:41.8]} 24. Nd3 {[%clk 0:02:49.5]} 24... Nc4 {[%clk 0:01:39.7]} 25. Ra1
{[%clk 0:02:50]} 25... Rea8 {[%clk 0:01:39.3]} 26. Rxa6 {[%clk 0:02:48.6]} 26...
Rxa6 {[%clk 0:01:40.2]} 27. Nc5 {[%clk 0:02:48.5]} 27... Ra3 {[%clk 0:01:37]}
28. e4 {[%clk 0:02:37.1]} 28... Qf4 {[%clk 0:01:14.7]} 29. Re1 {[%clk
0:02:19.2]} 29... Ra8 {[%clk 0:00:51.6]} 30. g3 {[%clk 0:02:11.4]} 30... Qf6
{[%clk 0:00:42]} 31. e5 {[%clk 0:02:02.9]} 31... Qf3 {[%clk 0:00:41.1]} 32. Qe2
{[%clk 0:01:34.9]} 32... Qxe2 {[%clk 0:00:35.1]} 33. Rxe2 {[%clk 0:01:35.8]}
33... Ra1+ {[%clk 0:00:35.2]} 34. Kg2 {[%clk 0:01:36.4]} 34... Rd1 {[%clk
0:00:08.2]} 35. e6 {[%clk 0:01:34.5]} 35... fxe6 {[%clk 0:00:09.1]} 36. Rxe6
{[%clk 0:01:33]} 36... Rxd4 {[%clk 0:00:09.6]} 37. Rxc6 {[%clk 0:01:33.4]} 37...
Rd2 {[%clk 0:00:05.9]} 38. Rc7 {[%clk 0:01:31.3]} 38... d4 {[%clk 0:00:03.8]}
39. Ne4 {[%clk 0:01:31.1]} 39... Rc2 {[%clk 0:00:03.4]} 40. Nf6+ {[%clk
0:01:31]} 40... Kf8 {[%clk 0:00:03.1]} 41. Nxh7+ {[%clk 0:01:31.3]} 41... Ke8
{[%clk 0:00:03.7]} 42. Nf6+ {[%clk 0:01:32.2]} 42... Kf8 {[%clk 0:00:02.9]} 43.
Rd7 {[%clk 0:01:31]} 43... Ne3+ {[%clk 0:00:02.1]} 44. Kf3 {[%clk 0:01:31.2]}
44... Nf5 {[%clk 0:00:02.6]} 45. g4 {[%clk 0:01:30]} 45... Rc3+ {[%clk
0:00:02.2]} 46. Ke4 {[%clk 0:01:28.3]} 46... Ne7 {[%clk 0:00:01.5]} 47. Rxd4
{[%clk 0:01:23.8]} 47... Rxh3 {[%clk 0:00:02.2]} 48. f3 {[%clk 0:01:20.2]} 48...
Kf7 {[%clk 0:00:02.1]} 49. Nd5 {[%clk 0:01:19.8]} 49... Nc6 {[%clk 0:00:02.7]}
50. Rd2 {[%clk 0:01:12.5]} 50... Rh1 {[%clk 0:00:02.8]} 51. Ra2 {[%clk 0:01:06]}
51... Re1+ {[%clk 0:00:02.6]} 52. Kf4 {[%clk 0:01:06.8]} 52... Rd1 {[%clk
0:00:02.2]} 53. Ra6 {[%clk 0:01:05.7]} 53... Rd4+ {[%clk 0:00:01.4]} 54. Ke3
{[%clk 0:01:02.1]} 54... Rxd5 {[%clk 0:00:01.6]} 55. Rxc6 {[%clk 0:01:02.4]}
55... Rd1 {[%clk 0:00:01.8]} 56. Rc5 {[%clk 0:01:01.2]} 56... Re1+ {[%clk
0:00:02.2]} 57. Kf4 {[%clk 0:01:01.5]} 57... Rb1 {[%clk 0:00:02.9]} 58. Rxb5
{[%clk 0:01:02]} 58... Kf6 {[%clk 0:00:03.1]} 59. Rb6+ {[%clk 0:01:02.3]} 59...
Kf7 {[%clk 0:00:03.8]} 60. Kg5 {[%clk 0:01:02.1]} 60... Rb3 {[%clk 0:00:03.1]}
61. Rb7+ {[%clk 0:00:59.2]} 61... Ke6 {[%clk 0:00:03.7]} 62. f4 {[%clk
0:00:59.8]} 62... Rg3 {[%clk 0:00:03]} 63. Rb6+ {[%clk 0:00:58.8]} 63... Kd5
{[%clk 0:00:02.4]} 64. Rxg6 {[%clk 0:00:59.7]} 64... Kc4 {[%clk 0:00:02.4]} 65.
Rb6 {[%clk 0:00:59.8]} 1-0

[Event "Late-Titled-Tuesday-Blitz-January-16-2024"]
[Site "Chess.com"]
[Date "2024.01.16"]
[Round "10"]
[White "dasatcu90"]
[Black "protectiago"]
[Result "0-1"]
[WhiteElo "2221"]
[BlackElo "2066"]
[TimeControl "180+1"]
[EndTime "15:56:53 PST"]
[Termination "protectiago won on time"]

1. d4 {[%clk 0:02:54.4]} 1... d5 {[%clk 0:02:55.2]} 2. Nf3 {[%clk 0:02:54.7]}
2... Nf6 {[%clk 0:02:54.5]} 3. e3 {[%clk 0:02:55.1]} 3... e6 {[%clk 0:02:52.9]}
4. Bd3 {[%clk 0:02:55.2]} 4... c5 {[%clk 0:02:52.8]} 5. c3 {[%clk 0:02:55.3]}
5... Nc6 {[%clk 0:02:50.5]} 6. Nbd2 {[%clk 0:02:55.8]} 6... Bd6 {[%clk
0:02:50.4]} 7. O-O {[%clk 0:02:55.5]} 7... b6 {[%clk 0:02:48.2]} 8. dxc5 {[%clk
0:02:52.7]} 8... bxc5 {[%clk 0:02:47.9]} 9. e4 {[%clk 0:02:53.4]} 9... Qc7
{[%clk 0:02:44]} 10. Qe2 {[%clk 0:02:52]} 10... O-O {[%clk 0:02:43.1]} 11. Re1
{[%clk 0:02:49.3]} 11... Nd7 {[%clk 0:01:25.8]} 12. Nf1 {[%clk 0:02:33.9]} 12...
Nde5 {[%clk 0:01:22.8]} 13. Nxe5 {[%clk 0:02:21.7]} 13... Nxe5 {[%clk
0:01:21.5]} 14. Bc2 {[%clk 0:02:21.8]} 14... a5 {[%clk 0:01:17.3]} 15. Qh5
{[%clk 0:02:08.1]} 15... g6 {[%clk 0:00:44.9]} 16. Qh3 {[%clk 0:02:04.6]} 16...
Re8 {[%clk 0:00:43]} 17. Bh6 {[%clk 0:01:55.3]} 17... d4 {[%clk 0:00:32]} 18.
Rad1 {[%clk 0:01:49.1]} 18... Nc6 {[%clk 0:00:27.3]} 19. Qh4 {[%clk 0:01:36.1]}
19... e5 {[%clk 0:00:17.8]} 20. Qf6 {[%clk 0:01:28.9]} 20... Bf8 {[%clk
0:00:17.9]} 21. Bxf8 {[%clk 0:01:28.5]} 21... Rxf8 {[%clk 0:00:17.4]} 22. Ng3
{[%clk 0:01:16.6]} 22... Be6 {[%clk 0:00:17.1]} 23. h4 {[%clk 0:01:11.7]} 23...
Qe7 {[%clk 0:00:17.2]} 24. Qf3 {[%clk 0:01:02.2]} 24... Qxh4 {[%clk 0:00:17.2]}
25. Ba4 {[%clk 0:00:41.5]} 25... Rac8 {[%clk 0:00:14.6]} 26. Rc1 {[%clk
0:00:38.1]} 26... Rfd8 {[%clk 0:00:11.9]} 27. Red1 {[%clk 0:00:27.5]} 27... Bxa2
{[%clk 0:00:10.5]} 28. b3 {[%clk 0:00:19.3]} 28... c4 {[%clk 0:00:08.8]} 29.
Bxc6 {[%clk 0:00:13.2]} 29... Rxc6 {[%clk 0:00:08]} 30. bxc4 {[%clk 0:00:13.8]}
30... Bxc4 {[%clk 0:00:07.7]} 31. cxd4 {[%clk 0:00:14.5]} 31... exd4 {[%clk
0:00:07.6]} 32. e5 {[%clk 0:00:12]} 32... Rcc8 {[%clk 0:00:06.3]} 33. Ne4 {[%clk
0:00:11.6]} 33... f5 {[%clk 0:00:05.4]} 34. Nf6+ {[%clk 0:00:10.2]} 34... Kf7
{[%clk 0:00:04.7]} 35. Qb7+ {[%clk 0:00:09.6]} 35... Kf8 {[%clk 0:00:03.3]} 36.
Nxh7+ {[%clk 0:00:07.8]} 36... Kg8 {[%clk 0:00:02.9]} 37. Nf6+ {[%clk 0:00:08]}
37... Kf8 {[%clk 0:00:03.3]} 0-1

[Event "Late-Titled-Tuesday-Blitz-January-16-2024"]
[Site "Chess.com"]
[Date "2024.01.16"]
[Round "10"]
[White "kai_nov"]
[Black "DonJuan_34"]
[Result "1-0"]
[WhiteElo "2293"]
[BlackElo "2398"]
[TimeControl "180+1"]
[EndTime "15:56:57 PST"]
[Termination "kai_nov won by checkmate"]

1. d4 {[%clk 0:03:00.9]} 1... Nf6 {[%clk 0:02:57.1]} 2. c4 {[%clk 0:02:58.5]}
2... g6 {[%clk 0:02:57.1]} 3. f3 {[%clk 0:02:58]} 3... Bg7 {[%clk 0:02:57.7]} 4.
e4 {[%clk 0:02:58]} 4... d6 {[%clk 0:02:58.1]} 5. Nc3 {[%clk 0:02:58.3]} 5...
O-O {[%clk 0:02:58.4]} 6. Bg5 {[%clk 0:02:58.1]} 6... c5 {[%clk 0:02:55]} 7. d5
{[%clk 0:02:55.1]} 7... h6 {[%clk 0:02:54.7]} 8. Be3 {[%clk 0:02:54.2]} 8... e6
{[%clk 0:02:54.4]} 9. Qd2 {[%clk 0:02:53.5]} 9... exd5 {[%clk 0:02:51.8]} 10.
cxd5 {[%clk 0:02:54.4]} 10... Re8 {[%clk 0:02:51.7]} 11. a4 {[%clk 0:02:53.6]}
11... Nbd7 {[%clk 0:02:49.8]} 12. Nh3 {[%clk 0:02:52.9]} 12... Ne5 {[%clk
0:02:47.3]} 13. Nf2 {[%clk 0:02:53]} 13... h5 {[%clk 0:02:43.7]} 14. h3 {[%clk
0:02:49.9]} 14... a6 {[%clk 0:02:33.3]} 15. Be2 {[%clk 0:02:49.5]} 15... Rb8
{[%clk 0:02:32.6]} 16. O-O {[%clk 0:02:48.6]} 16... b5 {[%clk 0:02:26.4]} 17.
axb5 {[%clk 0:02:47]} 17... axb5 {[%clk 0:02:26.4]} 18. Nxb5 {[%clk 0:02:46.4]}
18... Qb6 {[%clk 0:02:15.6]} 19. b4 {[%clk 0:02:42.1]} 19... Bd7 {[%clk
0:02:12.2]} 20. bxc5 {[%clk 0:02:40.4]} 20... dxc5 {[%clk 0:02:12]} 21. Rab1
{[%clk 0:02:28.6]} 21... Rec8 {[%clk 0:01:52.6]} 22. f4 {[%clk 0:02:22.8]} 22...
Neg4 {[%clk 0:01:18.5]} 23. hxg4 {[%clk 0:02:21.3]} 23... hxg4 {[%clk
0:01:18.8]} 24. g3 {[%clk 0:02:06.2]} 24... Nh5 {[%clk 0:01:17.8]} 25. Kh2
{[%clk 0:01:59.3]} 25... f5 {[%clk 0:01:11]} 26. e5 {[%clk 0:01:57.7]} 26... Qd8
{[%clk 0:01:07.9]} 27. Nd6 {[%clk 0:01:51.7]} 27... Rxb1 {[%clk 0:01:04.3]} 28.
Rxb1 {[%clk 0:01:52.6]} 28... Ra8 {[%clk 0:01:04.3]} 29. Bc4 {[%clk 0:01:45.9]}
29... g5 {[%clk 0:00:48.6]} 30. Nb7 {[%clk 0:01:41]} 30... Qe8 {[%clk
0:00:39.5]} 31. e6 {[%clk 0:01:35.1]} 31... Nxf4 {[%clk 0:00:33.9]} 32. gxf4
{[%clk 0:01:30.4]} 32... Qh5+ {[%clk 0:00:33.6]} 33. Kg2 {[%clk 0:01:30.2]}
33... g3 {[%clk 0:00:25.7]} 34. Kxg3 {[%clk 0:01:24.5]} 34... Ra3 {[%clk
0:00:22.7]} 35. Rb3 {[%clk 0:00:46.7]} 35... Ra1 {[%clk 0:00:22.5]} 36. Kg2
{[%clk 0:00:43]} 36... gxf4 {[%clk 0:00:14.6]} 37. Bxf4 {[%clk 0:00:41.6]} 37...
Bd4 {[%clk 0:00:14.6]} 38. Rg3+ {[%clk 0:00:38.5]} 38... Kh7 {[%clk 0:00:13.3]}
39. Rh3 {[%clk 0:00:37]} 39... Rg1+ {[%clk 0:00:11]} 40. Kxg1 {[%clk 0:00:36.1]}
40... Qxh3 {[%clk 0:00:11.3]} 41. Qxd4 {[%clk 0:00:32.6]} 41... Qh4 {[%clk
0:00:06.9]} 42. Qe3 {[%clk 0:00:29]} 42... Be8 {[%clk 0:00:05.9]} 43. d6 {[%clk
0:00:26.8]} 43... Bc6 {[%clk 0:00:05.7]} 44. Qg3 {[%clk 0:00:17.9]} 44... Qh5
{[%clk 0:00:05.7]} 45. e7 {[%clk 0:00:16.3]} 45... Bxb7 {[%clk 0:00:03.1]} 46.
Qg8# {[%clk 0:00:16]} 1-0

[Event "Late-Titled-Tuesday-Blitz-January-16-2024"]
[Site "Chess.com"]
[Date "2024.01.16"]
[Round "10"]
[White "chika-lily"]
[Black "TigrVShlyape"]
[Result "1/2-1/2"]
[WhiteElo "2771"]
[BlackElo "2944"]
[TimeControl "180+1"]
[EndTime "15:56:58 PST"]
[Termination "Game drawn by repetition"]

1. d4 {[%clk 0:03:00.9]} 1... f5 {[%clk 0:02:55.7]} 2. h3 {[%clk 0:02:59.1]}
2... d5 {[%clk 0:02:51.7]} 3. g4 {[%clk 0:02:55.2]} 3... fxg4 {[%clk 0:02:49.3]}
4. hxg4 {[%clk 0:02:56.1]} 4... Bxg4 {[%clk 0:02:47.7]} 5. Nc3 {[%clk
0:02:55.8]} 5... Nf6 {[%clk 0:02:47.1]} 6. Qd3 {[%clk 0:02:55.1]} 6... Nc6
{[%clk 0:02:38.7]} 7. Bf4 {[%clk 0:02:51.2]} 7... Qd7 {[%clk 0:02:31]} 8. Bh3
{[%clk 0:02:33]} 8... Nb4 {[%clk 0:02:09.5]} 9. Qd2 {[%clk 0:02:19.4]} 9...
O-O-O {[%clk 0:02:03.1]} 10. a3 {[%clk 0:02:10.9]} 10... Nc6 {[%clk 0:02:02.5]}
11. Nb5 {[%clk 0:02:05.1]} 11... a6 {[%clk 0:01:55.5]} 12. Nxc7 {[%clk 0:01:44]}
12... Bxh3 {[%clk 0:01:53]} 13. Nxh3 {[%clk 0:01:43]} 13... e5 {[%clk
0:01:45.7]} 14. dxe5 {[%clk 0:01:28.5]} 14... Ne4 {[%clk 0:01:45.2]} 15. e6
{[%clk 0:01:05.4]} 15... Qe7 {[%clk 0:01:42]} 16. Qe3 {[%clk 0:00:56.9]} 16...
Qf6 {[%clk 0:01:11.5]} 17. O-O-O {[%clk 0:00:38.1]} 17... Bc5 {[%clk 0:01:06.9]}
18. Qb3 {[%clk 0:00:31.5]} 18... d4 {[%clk 0:00:41.3]} 19. Kb1 {[%clk
0:00:23.3]} 19... Bd6 {[%clk 0:00:38.1]} 20. Nd5 {[%clk 0:00:21.9]} 20... Qf5
{[%clk 0:00:37.2]} 21. Nb6+ {[%clk 0:00:11.4]} 21... Kc7 {[%clk 0:00:33.9]} 22.
Bxd6+ {[%clk 0:00:08.6]} 22... Rxd6 {[%clk 0:00:32.7]} 23. Nc4 {[%clk
0:00:08.1]} 23... Rxe6 {[%clk 0:00:32]} 24. Qd3 {[%clk 0:00:04.9]} 24... Rf8
{[%clk 0:00:30.8]} 25. f3 {[%clk 0:00:04.9]} 25... Ng3 {[%clk 0:00:29.6]} 26.
Qxf5 {[%clk 0:00:04.8]} 26... Rxf5 {[%clk 0:00:29.2]} 27. Rhg1 {[%clk
0:00:05.4]} 27... Nxe2 {[%clk 0:00:25.8]} 28. Rxg7+ {[%clk 0:00:05.5]} 28... Kb8
{[%clk 0:00:25.2]} 29. Ng5 {[%clk 0:00:04.4]} 29... Rg6 {[%clk 0:00:24.2]} 30.
Rxg6 {[%clk 0:00:04.8]} 30... hxg6 {[%clk 0:00:24.3]} 31. Ne4 {[%clk 0:00:04.4]}
31... Rxf3 {[%clk 0:00:23.4]} 32. Rh1 {[%clk 0:00:05]} 32... Rf8 {[%clk
0:00:18.7]} 33. Ncd6 {[%clk 0:00:05]} 33... Nf4 {[%clk 0:00:16.3]} 34. Rh7
{[%clk 0:00:04.7]} 34... Ne6 {[%clk 0:00:16.2]} 35. Rxb7+ {[%clk 0:00:04.6]}
35... Ka8 {[%clk 0:00:15.8]} 36. Nd2 {[%clk 0:00:03.2]} 36... Ne5 {[%clk
0:00:13.6]} 37. Re7 {[%clk 0:00:02.7]} 37... Rf6 {[%clk 0:00:12.9]} 38. Ka2
{[%clk 0:00:02.8]} 38... Nc6 {[%clk 0:00:12.2]} 39. Rh7 {[%clk 0:00:01.6]} 39...
Nc5 {[%clk 0:00:11.7]} 40. N2c4 {[%clk 0:00:01.9]} 40... Na4 {[%clk 0:00:10.1]}
41. b3 {[%clk 0:00:02.6]} 41... Nc3+ {[%clk 0:00:10.2]} 42. Kb2 {[%clk
0:00:03.3]} 42... Nd5 {[%clk 0:00:03.5]} 43. Rh8+ {[%clk 0:00:03.9]} 43... Ka7
{[%clk 0:00:03.3]} 44. Rh7+ {[%clk 0:00:04.6]} 44... Ka8 {[%clk 0:00:03.4]} 45.
Rh8+ {[%clk 0:00:04.4]} 45... Ka7 {[%clk 0:00:03.8]} 46. Rh7+ {[%clk 0:00:04.9]}
46... Ka8 {[%clk 0:00:04.1]} 1/2-1/2

[Event "Late-Titled-Tuesday-Blitz-January-16-2024"]
[Site "Chess.com"]
[Date "2024.01.16"]
[Round "10"]
[White "mbojan"]
[Black "Ekko_li"]
[Result "1-0"]
[WhiteElo "2865"]
[BlackElo "2709"]
[TimeControl "180+1"]
[EndTime "15:56:59 PST"]
[Termination "mbojan won by resignation"]

1. a3 {[%clk 0:02:58.5]} 1... g6 {[%clk 0:02:55]} 2. d4 {[%clk 0:02:58]} 2...
Bg7 {[%clk 0:02:55.3]} 3. e4 {[%clk 0:02:58.5]} 3... d6 {[%clk 0:02:54.8]} 4.
Nc3 {[%clk 0:02:58.9]} 4... a6 {[%clk 0:02:52.4]} 5. f4 {[%clk 0:02:58.9]} 5...
b5 {[%clk 0:02:50]} 6. Nf3 {[%clk 0:02:58.4]} 6... Nd7 {[%clk 0:02:49.8]} 7. Bd3
{[%clk 0:02:58.8]} 7... c5 {[%clk 0:02:48.9]} 8. dxc5 {[%clk 0:02:57.8]} 8...
Nxc5 {[%clk 0:02:48.5]} 9. Be3 {[%clk 0:02:58.2]} 9... Bb7 {[%clk 0:02:47.1]}
10. O-O {[%clk 0:02:58.7]} 10... Rc8 {[%clk 0:02:41.8]} 11. Qe2 {[%clk
0:02:56.6]} 11... Nf6 {[%clk 0:02:32.8]} 12. Bxc5 {[%clk 0:02:56.9]} 12... Rxc5
{[%clk 0:02:32.3]} 13. e5 {[%clk 0:02:57.4]} 13... Nh5 {[%clk 0:02:30.6]} 14. e6
{[%clk 0:02:53.5]} 14... f5 {[%clk 0:02:27.5]} 15. Ng5 {[%clk 0:02:44.1]} 15...
Qb6 {[%clk 0:02:17.4]} 16. Kh1 {[%clk 0:02:43.9]} 16... O-O {[%clk 0:02:11.7]}
17. Rae1 {[%clk 0:02:44.1]} 17... Rfc8 {[%clk 0:02:05.5]} 18. Nd1 {[%clk
0:02:41.4]} 18... b4 {[%clk 0:02:00.5]} 19. axb4 {[%clk 0:02:40.3]} 19... Qxb4
{[%clk 0:02:00.4]} 20. c3 {[%clk 0:02:40.9]} 20... Qa4 {[%clk 0:01:56.3]} 21.
Qd2 {[%clk 0:02:38.2]} 21... Nf6 {[%clk 0:01:45.7]} 22. Ne3 {[%clk 0:02:27.6]}
22... Qb3 {[%clk 0:01:40.6]} 23. Nc2 {[%clk 0:02:01.1]} 23... Qxb2 {[%clk
0:01:17.3]} 24. Rb1 {[%clk 0:02:00.9]} 24... Qxc3 {[%clk 0:01:18]} 25. Qxc3
{[%clk 0:02:01.8]} 25... Rxc3 {[%clk 0:01:18.5]} 26. Rxb7 {[%clk 0:02:02.7]}
26... Rxd3 {[%clk 0:01:19]} 27. Ne1 {[%clk 0:01:45.9]} 27... Rd1 {[%clk
0:01:17.4]} 28. Rxe7 {[%clk 0:01:45.4]} 28... Nd5 {[%clk 0:01:13.6]} 29. Rd7
{[%clk 0:01:34.9]} 29... Ne3 {[%clk 0:01:01.8]} 30. Rg1 {[%clk 0:01:32.5]} 30...
Re8 {[%clk 0:00:59.7]} 31. e7 {[%clk 0:01:18.1]} 31... Bf6 {[%clk 0:00:59.7]}
32. Nef3 {[%clk 0:01:12.3]} 32... Rxe7 {[%clk 0:00:58.9]} 33. Rxd1 {[%clk
0:01:09.3]} 33... Rxd7 {[%clk 0:00:46.9]} 34. Rb1 {[%clk 0:01:10.1]} 34... Bxg5
{[%clk 0:00:42.3]} 35. Nxg5 {[%clk 0:01:10.2]} 35... h6 {[%clk 0:00:40.1]} 36.
Rb8+ {[%clk 0:01:10]} 36... Kg7 {[%clk 0:00:39.9]} 37. Ne6+ {[%clk 0:01:10.9]}
37... Kf6 {[%clk 0:00:39.5]} 38. Nd4 {[%clk 0:01:11.8]} 38... g5 {[%clk
0:00:35.7]} 39. fxg5+ {[%clk 0:01:09]} 39... hxg5 {[%clk 0:00:35.5]} 40. Kg1
{[%clk 0:01:07.5]} 40... f4 {[%clk 0:00:31]} 41. Rb6 {[%clk 0:01:06.1]} 41...
Ke5 {[%clk 0:00:29.5]} 42. Nf3+ {[%clk 0:01:06.6]} 42... Kf5 {[%clk 0:00:29.6]}
43. Rxa6 {[%clk 0:01:07.2]} 43... g4 {[%clk 0:00:29.3]} 44. Nd4+ {[%clk
0:01:07.2]} 44... Ke4 {[%clk 0:00:29]} 45. Ra4 {[%clk 0:01:03.1]} 45... Ke5
{[%clk 0:00:25.3]} 46. Nc6+ {[%clk 0:01:00.9]} 46... Kf5 {[%clk 0:00:25.4]} 47.
Nd4+ {[%clk 0:01:00.9]} 47... Kg5 {[%clk 0:00:25.2]} 48. Ne6+ {[%clk 0:01:00.9]}
48... Kf5 {[%clk 0:00:25.1]} 49. Nxf4 {[%clk 0:01:01.5]} 49... Rc7 {[%clk
0:00:23.6]} 50. Ne2 {[%clk 0:01:01.9]} 50... Kg5 {[%clk 0:00:18.1]} 51. Kf2
{[%clk 0:01:01.5]} 51... Nf5 {[%clk 0:00:18.3]} 52. Ra5 {[%clk 0:01:01.7]} 52...
Rc5 {[%clk 0:00:18]} 53. Ra8 {[%clk 0:01:01.1]} 53... Rc2 {[%clk 0:00:15.4]} 54.
Rg8+ {[%clk 0:01:01.4]} 54... Kf6 {[%clk 0:00:16]} 55. Rxg4 {[%clk 0:00:59.1]}
55... d5 {[%clk 0:00:16.6]} 56. Ke1 {[%clk 0:00:56.7]} 56... d4 {[%clk
0:00:14.5]} 57. Rf4 {[%clk 0:00:48.7]} 57... d3 {[%clk 0:00:06.4]} 58. Rxf5+
{[%clk 0:00:49.1]} 58... Kxf5 {[%clk 0:00:04.2]} 59. Nd4+ {[%clk 0:00:49.4]} 1-0